bitfinex-derivatives/quotes_SOLF0:USTF0_20240913
["timestamp","ask_amount","ask_price","bid_price","bid_amount"]
[1726256930568,3.6157,138.22,138.19,10.02]
[1726256930764,11.3238,138.23,138.19,10.02]
[1726256930968,3.616,138.21,138.19,10.02]
[1726256931573,10.02,138.22,138.18,10.02]
[1726256931774,1.3038,138.23,138.12,3.64898548]
[1726256931775,10.02,138.21,138.12,3.64898548]
[1726256931973,10.02,138.21,138.16,13.6371]
[1726256932170,10.02,138.21,138.17,10.02]
[1726256932565,3.6165,138.19,138.17,10.02]
[1726256933674,3.6164,138.2,138.17,10.02]
[1726256933982,3.6164,138.2,138.18,10.02]
[1726256934479,1.3038,138.23,138.19,13.6364]
[1726256934680,1.3206,138.24,138.22,10.02]
[1726256935078,3.6156,138.23,138.22,10.02]
[1726256936280,3.6156,138.23,138.2,3.6161]
[1726256936581,3.6156,138.23,138.22,10.02]
[1726256937576,4.936,138.24,138.22,10.02]
[1726256937782,1.3206,138.24,138.23,10.02]
[1726256938378,4.9358,138.24,138.22,10.02]
[1726256939079,3.6151,138.25,138.22,13.6357]
[1726256939581,3.6152,138.24,138.22,13.6357]
[1726256939883,3.6152,138.24,138.22,10.02]
[1726256940078,3.6151,138.25,138.22,10.02]
[1726256940284,3.6151,138.25,138.22,13.6357]
[1726256941280,3.6153,138.24,138.22,13.6357]
[1726256941582,3.6153,138.24,138.22,10.02]
[1726256941783,10.02,138.26,138.21,13.6359]
[1726256942182,3.6155,138.24,138.21,13.6359]
[1726256943285,3.6155,138.24,138.21,10.02]
[1726256943780,3.6155,138.23,138.21,10.02]
[1726256945982,3.6153,138.24,138.22,10.02]
[1726256946586,3.6151,138.25,138.22,10.02]
[1726256947386,3.6151,138.25,138.23,10.02]
[1726256949888,3.6152,138.24,138.21,3.616]
[1726256950087,3.6152,138.24,138.22,10.02]
[1726256952090,3.6155,138.23,138.22,10.02]
[1726256954392,3.6155,138.23,138.18,3.59206]
[1726256954393,3.6155,138.23,138.21,10.02]
[1726256954796,4.87196351,138.28,138.19,3.6164]
[1726256954797,3.6158,138.22,138.2,10.02]
[1726256957698,3.6156,138.23,138.21,10.02]
[1726256957993,3.6156,138.23,138.22,10.02]
[1726256958698,3.6156,138.23,138.21,10.02]
[1726256961187,1.3553,138.24,138.21,10.02]
[1726256962798,3.6157,138.23,138.21,10.02]
[1726256964693,10.02,138.23,138.2,10.02]
[1726256965791,3.6159,138.22,138.2,10.02]
[1726256967094,3.6163,138.2,138.17,3.617]
[1726256967295,10.02,138.21,138.17,10.02]
[1726256967994,3.6167,138.19,138.12,3.59206]
[1726256968193,3.6167,138.19,138.16,10.02]
[1726256968791,10.02,138.18,138.14,3.6178]
[1726256968997,10.02,138.18,138.14,13.6378]
[1726256969295,10.02,138.18,138.05,25.30619412]
[1726256969296,3.6176,138.15,138.09,3.59206]
[1726256969493,10.02,138.17,138.12,10.02]
[1726256969995,10.02,138.17,138.13,10.02]
[1726256969996,3.6174,138.16,138.13,10.02]
[1726256970298,3.6174,138.16,138.11,3.6185]
[1726256970299,3.6177,138.15,138.11,3.6185]
[1726256970508,11.3331,138.16,138.11,13.6385]
[1726256971097,3.6177,138.15,138.13,10.02]
[1726256971889,10.02,138.18,138.14,10.02]
[1726256972203,10.02,138.18,138.13,3.6179]
[1726256972400,10.02,138.18,138.13,13.6379]
[1726256972902,3.6174,138.16,138.13,13.6379]
[1726256973100,3.6174,138.16,138.13,10.02]
[1726256976302,3.6174,138.16,138.13,13.6381]
[1726256976510,3.6172,138.17,138.13,10.02]
[1726256976710,3.6172,138.17,138.15,10.02]
[1726256978708,3.6173,138.16,138.14,10.02]
[1726256979414,3.6178,138.15,138.12,10.02]
[1726256980106,3.6178,138.15,138.12,13.6382]
[1726256980305,3.6175,138.16,138.12,13.6382]
[1726256980505,3.6175,138.16,138.13,10.02]
[1726256982111,3.6176,138.15,138.13,10.02]
[1726256983412,3.6176,138.15,138.12,3.6182]
[1726256983612,3.618,138.14,138.09,3.6461592]
[1726256983817,3.618,138.14,138.08,3.59206]
[1726256983818,3.618,138.14,138.11,10.02]
[1726256985612,3.6181,138.13,138.11,10.02]
[1726256993020,11.4259,138.15,138.08,3.6192]
[1726256993215,10.02,138.13,138.09,10.02]
[1726256993813,3.6188,138.11,138.09,10.02]
[1726256994824,3.6189,138.1,138.08,10.02]
[1726256995609,3.6189,138.1,138.04,3.59206]
[1726256995814,3.6189,138.1,138.07,13.6396]
[1726256996625,3.6192,138.09,138.06,13.6398]
[1726256997629,3.6193,138.09,138.02,3.59049]
[1726256997925,3.6193,138.09,138.06,10.02]
[1726256998126,3.6193,138.09,138.06,13.6399]
[1726256998922,3.6193,138.09,138.06,10.02]
[1726256999320,3.6193,138.09,138.07,10.02]
[1726256999823,3.619,138.1,138.08,10.02]
[1726257000316,1.3338,138.14,138.09,10.02]
[1726257000516,1.3338,138.14,138.03,3.59049]
[1726257000825,3.6188,138.11,138.09,10.02]
[1726257001020,11.3538,138.14,138.03,3.59049]
[1726257001021,10.02,138.12,138.03,3.59049]
[1726257001326,10.02,138.12,138.07,10.02]
[1726257001522,10.02,138.1,138.03,3.59049]
[1726257001728,10.02,138.08,138.04,10.02]
[1726257001925,10.02,138.08,138.01,3.59049]
[1726257002115,3.6201,138.06,138.02,3.6208]
[1726257002320,3.6201,138.06,138.03,10.02]
[1726257003220,13.6398,138.07,138.03,13.6407]
[1726257005430,10.02,138.05,138.01,10.02]
[1726257006133,13.6403,138.05,138.01,13.6411]
[1726257007120,13.6405,138.04,138.0,3.6213]
[1726257007321,13.6405,138.04,138.0,13.6413]
[1726257007526,3.6211,138.02,137.98,3.622]
[1726257007721,10.02,138.03,137.98,13.642]
[1726257007925,10.02,137.99,137.92,3.60896238]
[1726257008127,13.6413,138.01,137.97,10.02]
[1726257008523,2.8234,138.02,137.99,10.02]
[1726257008731,1.3861,138.02,138.0,10.02]
[1726257009428,15.0271,138.02,137.98,13.6419]
[1726257009728,11.4061,138.02,137.98,10.02]
[1726257010132,15.0272,138.02,137.98,10.02]
[1726257010633,13.6413,138.01,137.94,3.59049]
[1726257010828,11.4061,138.02,137.98,10.02]
[1726257011635,1.3861,138.02,137.99,10.02]
[1726257012032,1.3861,138.02,137.99,13.6416]
[1726257012641,15.0271,138.02,137.98,13.642]
[1726257013332,1.3861,138.02,138.0,3.6214]
[1726257013530,1.3861,138.02,137.99,10.02]
[1726257013730,11.4061,138.02,137.98,10.02]
[1726257013930,15.0271,138.02,137.98,13.6419]
[1726257014539,11.4061,138.02,137.99,3.6217]
[1726257015839,1.3861,138.02,137.99,10.02]
[1726257016040,3.6204,138.05,138.01,13.6412]
[1726257016233,10.02,138.05,138.01,13.6412]
[1726257016434,10.02,138.03,137.99,10.02]
[1726257016631,10.02,138.03,137.99,13.6417]
[1726257016839,10.02,138.03,137.99,10.02]
[1726257017039,10.02,138.03,138.0,3.6214]
[1726257017633,3.6206,138.04,138.0,3.6214]
[1726257017835,10.02,138.03,138.0,3.6214]
[1726257018137,1.3437,138.07,138.02,10.02]
[1726257018344,10.02,138.09,138.06,10.02]
[1726257018345,1.4226,138.09,138.06,10.02]
[1726257018643,1.4226,138.09,138.07,10.02]
[1726257019140,1.4226,138.09,138.06,10.02]
[1726257019443,5.0418,138.09,138.06,10.02]
[1726257020139,15.0618,138.09,138.06,10.02]
[1726257020351,10.02,138.07,138.01,3.59049]
[1726257020657,10.02,138.07,138.0,3.6153438]
[1726257020658,10.02,138.07,138.03,10.02]
[1726257021158,1.4226,138.09,138.04,10.02]
[1726257021351,10.02,138.08,138.04,10.02]
[1726257021655,13.6396,138.08,138.04,13.6404]
[1726257022041,13.6397,138.07,138.03,13.6407]
[1726257022244,10.02,138.05,138.0,10.02]
[1726257023142,13.6406,138.04,137.99,13.6416]
[1726257023346,10.02,138.04,137.99,10.02]
[1726257023839,13.6405,138.04,137.99,13.6416]
[1726257024254,3.6205,138.04,137.99,3.6216]
[1726257024550,3.6207,138.03,137.99,3.6216]
[1726257025140,3.621,138.02,137.98,3.6219]
[1726257025654,15.65,138.04,137.98,3.6219]
[1726257025855,3.6208,138.03,137.99,3.6218]
[1726257030755,15.65,138.04,137.94,3.59049]
[1726257030962,15.65,138.04,137.94,19.24049]
[1726257031259,1.3742,138.03,137.94,22.92025255]
[1726257031448,1.3742,138.03,137.96,15.65]
[1726257032568,3.621,138.02,137.98,3.6218]
[1726257034961,3.621,138.02,137.96,15.65]
[1726257034962,4.995,138.03,137.99,3.6215]
[1726257035463,3.621,138.02,137.98,3.6218]
[1726257035669,3.621,138.02,137.96,15.65]
[1726257035868,1.3742,138.03,137.96,15.65]
[1726257036462,17.0242,138.03,137.96,15.65]
[1726257036670,3.6213,138.01,137.98,3.622]
[1726257037268,17.0242,138.03,137.98,3.622]
[1726257038581,3.6211,138.02,137.98,3.622]
[1726257039572,3.6211,138.02,137.99,3.6218]
[1726257039970,4.995,138.03,137.99,3.6218]
[1726257040172,1.3742,138.03,137.98,15.65]
[1726257040580,1.3742,138.03,138.0,3.6214]
[1726257040881,2.815,138.05,138.0,15.65]
[1726257040882,1.3988,138.05,138.0,15.65]
[1726257041182,1.3988,138.05,138.02,3.6209]
[1726257042181,15.65,138.09,138.03,3.6206]
[1726257042567,3.62,138.06,138.03,3.6206]
[1726257042775,15.65,138.09,138.03,3.6206]
[1726257042976,15.65,138.09,138.04,3.6203]
[1726257043179,3.6198,138.07,138.04,3.6203]
[1726257043368,3.6198,138.07,138.01,15.65]
[1726257043572,3.6198,138.07,138.03,3.6206]
[1726257043780,3.6201,138.06,138.03,3.6206]
[1726257044089,3.6201,138.06,138.02,3.6209]
[1726257044782,3.6201,138.06,138.03,3.6206]
[1726257045289,15.65,138.09,138.03,3.6206]
[1726257045290,3.6197,138.07,138.03,3.6206]
[1726257046088,13.6297,138.07,138.03,13.6306]
[1726257047585,3.62,138.06,138.02,13.6309]
[1726257048394,3.62,138.06,138.02,17.18962086]
[1726257049387,3.62,138.06,138.03,3.6207]
[1726257050092,3.62,138.06,138.02,17.18962086]
[1726257050286,3.6203,138.05,138.02,7.17962086]
[1726257050589,10.01,138.06,138.02,7.17962086]
[1726257050778,10.01,138.06,138.02,17.18962086]
[1726257050974,13.6301,138.06,138.02,17.18962086]
[1726257051387,13.6301,138.06,138.03,3.6207]
[1726257051781,13.6301,138.06,138.02,7.17962086]
[1726257051977,10.01,138.05,138.02,7.17962086]
[1726257053487,13.6301,138.06,138.03,3.6207]
[1726257056085,13.6301,138.06,138.02,7.17962086]
[1726257056281,10.01,138.06,138.02,7.17962086]
[1726257056490,10.01,138.05,138.0,10.01]
[1726257056685,11.4297,138.05,138.0,13.6314]
[1726257056887,3.6206,138.04,138.0,13.6314]
[1726257057597,3.6206,138.04,138.01,3.6212]
[1726257057893,1.4197,138.05,138.02,13.6309]
[1726257060391,15.05,138.05,138.02,3.6209]
[1726257060790,1.4197,138.05,138.02,3.6209]
[1726257061100,1.4197,138.05,137.99,3.58624945]
[1726257061101,10.01,138.03,137.87,17.251]
[1726257061290,1.4168,138.04,137.87,7.241]
[1726257061487,1.4168,138.04,137.9,10.01]
[1726257061686,10.01,137.96,137.9,10.01]
[1726257061886,10.01,137.97,137.91,3.6236]
[1726257062084,5.12477461,138.04,137.92,10.01]
[1726257062293,5.12477461,138.04,137.94,10.01]
[1726257062494,10.01,137.98,137.93,10.01]
[1726257063097,16.64196766,137.97,137.93,10.01]
[1726257063299,16.64196766,137.96,137.93,10.01]
[1726257063492,16.64196766,137.95,137.93,10.01]
[1726257063694,5.12477461,138.04,137.91,3.58945]
[1726257063695,16.64196766,137.94,137.91,3.6238]
[1726257063893,26.65287856,137.93,137.87,3.58945]
[1726257064094,16.64287856,137.92,137.86,7.241]
[1726257064294,6.40075679,137.91,137.87,3.6249]
[1726257064497,6.40075679,137.9,137.87,3.6249]
[1726257064698,15.65,137.94,137.87,3.6249]
[1726257064699,10.24251412,137.93,137.87,3.6249]
[1726257064890,16.64431253,137.92,137.87,3.6249]
[1726257065090,19.2733,137.94,137.87,3.6249]
[1726257065297,16.64495406,137.91,137.87,3.6249]
[1726257065501,6.40190541,137.9,137.87,3.6249]
[1726257065798,3.6235,137.93,137.87,3.6249]
[1726257065998,16.64495406,137.92,137.87,3.6249]
[1726257066200,6.40190541,137.91,137.87,3.6249]
[1726257066506,6.40190541,137.9,137.87,3.6249]
[1726257066704,3.6235,137.93,137.87,3.6249]
[1726257066907,16.64483858,137.92,137.87,3.6249]
[1726257067107,3.6235,137.93,137.88,3.6247]
[1726257067108,6.40186099,137.91,137.88,3.6247]
[1726257067309,6.40186099,137.9,137.86,14.46845598]
[1726257067610,3.6235,137.93,137.86,14.46845598]
[1726257067806,16.64483884,137.92,137.87,3.6247]
[1726257067998,6.40186109,137.91,137.87,3.6247]
[1726257068202,6.4018611,137.9,137.87,3.6247]
[1726257068499,3.6235,137.93,137.87,3.6247]
[1726257068700,17.0056,137.94,137.86,10.87900598]
[1726257068910,15.65,137.92,137.84,7.241]
[1726257069208,16.64595886,137.91,137.86,7.241]
[1726257069506,6.40229187,137.9,137.87,3.6249]
[1726257069712,6.40229187,137.89,137.87,3.6249]
[1726257069905,19.2737,137.92,137.87,3.6249]
[1726257070104,16.64718947,137.91,137.87,3.6249]
[1726257070406,16.64718947,137.9,137.87,3.6249]
[1726257070603,6.40265296,137.89,137.87,3.6249]
[1726257070800,6.40265296,137.88,137.87,3.6249]
[1726257071003,19.2737,137.92,137.87,3.6249]
[1726257071200,15.65,137.88,137.79,10.83045]
[1726257071407,16.64938079,137.87,137.81,19.208249]
[1726257071710,3.67860953,137.91,137.83,15.65]
[1726257071711,15.65,137.91,137.83,15.65]
[1726257072100,16.64913069,137.9,137.83,15.65]
[1726257072297,16.64913069,137.89,137.83,15.65]
[1726257072508,6.4035118,137.88,137.83,19.23945]
[1726257072810,3.6243,137.9,137.85,3.6254]
[1726257073002,16.64903786,137.89,137.85,3.6254]
[1726257073202,6.4034761,137.88,137.85,3.6254]
[1726257073404,3.6243,137.9,137.85,3.6254]
[1726257073610,16.64880805,137.89,137.85,3.6254]
[1726257074010,6.40338771,137.89,137.85,3.6254]
[1726257074213,19.274,137.91,137.86,3.6252]
[1726257074417,6.40307314,137.9,137.86,3.6252]
[1726257074603,6.40307314,137.89,137.86,3.6252]
[1726257074804,19.274,137.91,137.86,3.6252]
[1726257075117,6.40304059,137.9,137.86,3.6252]
[1726257075307,3.624,137.91,137.86,3.6252]
[1726257076108,3.6237,137.92,137.85,19.20730827]
[1726257076311,1.3556,137.94,137.87,15.65]
[1726257076518,16.64637712,137.93,137.87,15.65]
[1726257076700,6.40245274,137.92,137.87,15.65]
[1726257076902,6.40245274,137.91,137.88,3.6247]
[1726257077106,16.9549,137.95,137.87,19.23945]
[1726257077310,6.40198592,137.94,137.88,15.65]
[1726257077513,15.65,137.97,137.91,3.6237]
[1726257077714,16.64448269,137.96,137.9,15.65]
[1726257078015,16.64448269,137.95,137.9,19.23945]
[1726257078315,15.65,137.99,137.9,19.23945]
[1726257078514,16.64382422,137.98,137.9,19.23945]
[1726257078709,15.65,137.99,137.9,19.23945]
[1726257078915,16.64374827,137.98,137.9,19.23945]
[1726257079214,20.26614827,137.97,137.92,3.6234]
[1726257079511,16.64374827,137.96,137.92,19.23945]
[1726257079711,6.40144164,137.95,137.93,3.6231]
[1726257079916,2.7362,138.0,137.94,15.65]
[1726257080112,16.64219464,137.99,137.94,15.65]
[1726257080308,16.64219464,137.98,137.94,15.65]
[1726257080509,6.40084409,137.97,137.95,15.65]
[1726257080708,3.6209,138.03,137.99,3.6216]
[1726257080922,16.64101122,138.02,137.99,3.6216]
[1726257081216,6.40038893,138.01,138.0,19.2715]
[1726257081413,2.05068893,138.01,138.0,19.2715]
[1726257081613,1.4334,138.06,138.0,19.23945]
[1726257081818,10.23800229,138.05,138.03,3.6207]
[1726257082016,1.3067,138.09,138.03,3.6207]
[1726257082207,10.23785568,138.08,138.03,7.21015]
[1726257082407,10.23785568,138.07,138.02,3.59192]
[1726257082621,10.23785568,138.06,138.02,3.59192]
[1726257082813,10.23785568,138.05,138.02,3.59192]
[1726257083005,3.6201,138.06,138.02,3.59192]
[1726257083411,3.6201,138.06,138.02,7.21282]
[1726257083611,3.6198,138.07,138.02,7.21282]
[1726257083817,1.4334,138.11,138.02,7.21282]
[1726257083818,7.56695834,138.19,138.06,15.65]
[1726257084117,3.6183,138.13,138.07,3.6197]
[1726257084320,2.719,138.14,138.08,15.65]
[1726257084912,2.719,138.14,138.08,19.24192]
[1726257085319,2.719,138.14,138.1,15.65]
[1726257085716,2.719,138.14,138.1,19.24192]
[1726257085918,3.6175,138.16,138.11,3.6185]
[1726257086320,3.6175,138.16,138.11,3.59192]
[1726257086922,3.6176,138.15,138.11,3.59192]
[1726257087115,15.65,138.16,138.1,3.59192]
[1726257087415,15.65,138.16,138.09,3.59192]
[1726257087416,1.4294,138.14,138.09,3.59192]
[1726257087616,3.6183,138.13,138.09,3.59192]
[1726257088222,17.0794,138.14,138.08,3.59192]
[1726257088918,17.0794,138.14,138.08,7.21102]
[1726257089221,3.6183,138.13,138.08,3.59192]
[1726257090016,3.6183,138.13,138.08,7.21132]
[1726257091226,20.6973,138.14,138.09,3.6191]
[1726257091923,5.0473,138.14,138.09,3.6191]
[1726257093521,6.10122053,138.13,138.1,3.6188]
[1726257093724,5.0473,138.14,138.1,3.6188]
[1726257094025,1.4294,138.14,138.1,19.24192]
[1726257094326,1.3453,138.15,138.12,15.65]
[1726257094629,1.4263,138.18,138.12,19.24192]
[1726257094925,6.09970644,138.17,138.12,19.24192]
[1726257095120,5.0433,138.18,138.12,19.24192]
[1726257095428,1.4263,138.18,138.12,19.24192]
[1726257095822,1.4263,138.18,138.12,22.86012]
[1726257095823,9.71714179,138.17,138.12,22.86012]
[1726257096120,1.4263,138.18,138.12,22.86012]
[1726257096326,1.4263,138.18,138.12,19.24192]
[1726257096522,9.71726993,138.17,138.12,19.24192]
[1726257096724,1.4263,138.18,138.12,19.24192]
[1726257096930,5.0433,138.18,138.13,3.6179]
[1726257097127,1.4263,138.18,138.13,3.6179]
[1726257097520,3.6174,138.16,138.12,19.24192]
[1726257097723,1.4263,138.18,138.12,19.24192]
[1726257097923,1.4263,138.18,138.12,3.59192]
[1726257098230,6.10021774,138.17,138.12,3.59192]
[1726257098432,1.4263,138.18,138.12,3.59192]
[1726257098621,3.6175,138.16,138.12,7.21032]
[1726257099016,3.6176,138.15,138.12,3.59192]
[1726257100730,3.6178,138.14,138.1,3.6189]
[1726257100932,15.65,138.16,138.08,15.65]
[1726257101125,15.65,138.16,138.08,3.59192]
[1726257101328,15.65,138.14,138.08,3.59192]
[1726257101531,1.3681,138.13,138.07,3.59192]
[1726257101731,3.6186,138.12,138.07,3.59192]
[1726257102024,4.9159,138.12,138.07,7.21162]
[1726257102229,3.6188,138.11,138.07,3.59192]
[1726257102431,15.65,138.11,138.06,3.59192]
[1726257102734,17.0839,138.11,138.03,15.65]
[1726257103034,17.0839,138.11,138.03,19.24063]
[1726257103236,17.0839,138.11,138.05,3.6202]
[1726257103422,17.0839,138.11,138.05,7.21083]
[1726257103622,17.0839,138.11,138.05,3.59063]
[1726257103833,17.0839,138.11,138.07,3.6196]
[1726257103834,1.4339,138.11,138.07,3.6196]
[1726257104331,1.4339,138.11,138.06,3.6198]
[1726257104332,5.0525,138.11,138.06,3.6198]
[1726257104529,1.4339,138.11,138.06,7.21043]
[1726257105327,3.619,138.1,138.06,7.21043]
[1726257105637,1.4339,138.11,138.05,3.59063]
[1726257105827,1.4339,138.11,138.04,3.59063]
[1726257106028,3.619,138.1,138.05,3.62]
[1726257106542,3.619,138.1,138.06,3.6199]
[1726257107835,3.6196,138.08,138.04,7.21083]
[1726257108932,15.65,138.09,138.04,7.21083]
[1726257108933,3.6192,138.09,138.05,3.6201]
[1726257109442,17.0839,138.11,138.04,3.59063]
[1726257109932,3.6194,138.08,138.04,7.21093]
[1726257110337,3.6194,138.08,138.04,3.59063]
[1726257110530,3.6193,138.09,138.04,3.59063]
[1726257110842,17.0839,138.11,138.04,3.59063]
[1726257111934,3.6196,138.08,138.04,7.21093]
[1726257112137,3.6196,138.08,138.04,3.59063]
[1726257112731,3.6193,138.09,138.05,3.6201]
[1726257112931,17.0839,138.11,138.04,3.59063]
[1726257113242,3.6191,138.1,138.06,3.6198]
[1726257113629,17.0839,138.11,138.06,3.6198]
[1726257114444,1.4339,138.11,138.07,3.6195]
[1726257114744,1.4339,138.11,138.05,15.65]
[1726257114940,1.4339,138.11,138.07,3.6196]
[1726257115335,5.0526,138.11,138.07,3.6194]
[1726257115538,5.0526,138.11,138.05,3.59063]
[1726257116239,1.4339,138.11,138.05,3.59063]
[1726257117540,4.9158,138.12,138.05,3.59063]
[1726257118044,1.2973,138.12,138.09,3.6191]
[1726257118446,1.2973,138.12,138.08,3.59063]
[1726257118644,1.3681,138.13,138.11,3.6186]
[1726257119337,3.6178,138.15,138.11,7.20923]
[1726257119539,3.6178,138.15,138.12,3.6182]
[1726257119738,3.6178,138.15,138.11,3.59063]
[1726257120149,15.65,138.16,138.11,3.59063]
[1726257120344,15.65,138.16,138.09,3.59063]
[1726257120745,3.6185,138.12,138.09,3.59063]
[1726257121443,3.6187,138.11,138.09,3.59063]
[1726257121751,3.6187,138.11,138.08,3.6194]
[1726257121941,3.6184,138.12,138.09,3.6191]
[1726257122348,3.6187,138.11,138.08,3.6193]
[1726257122851,15.65,138.12,138.06,3.59063]
[1726257123048,15.65,138.12,138.04,15.65]
[1726257123049,1.3113,138.1,138.04,15.65]
[1726257123251,1.3113,138.1,138.04,3.59063]
[1726257123446,1.3113,138.1,138.04,7.21093]
[1726257124455,1.3113,138.1,138.05,3.6201]
[1726257125044,3.6196,138.08,138.05,3.6201]
[1726257125654,3.6192,138.09,138.05,3.6201]
[1726257126652,3.6195,138.08,138.05,3.6201]
[1726257126845,1.3113,138.1,138.04,7.21103]
[1726257127451,3.6199,138.07,138.04,3.59063]
[1726257127658,1.3113,138.1,138.04,3.59063]
[1726257127854,15.65,138.09,138.04,3.59063]
[1726257128956,3.6198,138.07,138.04,3.59063]
[1726257129468,3.6198,138.07,138.04,7.21103]
[1726257129668,3.6196,138.08,138.04,7.21103]
[1726257129872,3.6196,138.08,138.04,3.59063]
[1726257130364,1.3113,138.1,138.04,19.24063]
[1726257130554,1.4368,138.12,138.06,15.65]
[1726257130761,1.2982,138.13,138.08,15.65]
[1726257131162,1.2982,138.13,138.08,19.24063]
[1726257131367,1.2982,138.13,138.09,3.6191]
[1726257131762,4.9163,138.13,138.09,7.20973]
[1726257131972,1.2982,138.13,138.09,7.20973]
[1726257132563,1.2982,138.13,138.11,3.6186]
[1726257132765,1.3089,138.17,138.1,3.59063]
[1726257133066,18.2847,138.21,138.11,15.65]
[1726257133262,3.6172,138.17,138.13,3.6179]
[1726257133664,3.6172,138.17,138.11,19.24063]
[1726257133866,3.6172,138.17,138.12,3.6183]
[1726257134071,3.6173,138.16,138.12,3.6183]
[1726257134761,3.6173,138.16,138.12,7.20893]
[1726257135567,3.6177,138.15,138.12,3.59063]
[1726257135870,3.6177,138.15,138.11,7.20913]
[1726257136672,3.6179,138.14,138.11,3.59063]
[1726257137267,3.6177,138.15,138.11,3.59063]
[1726257138274,15.65,138.19,138.11,19.24063]
[1726257138473,15.65,138.19,138.11,3.59063]
[1726257139369,15.65,138.19,138.12,15.65]
[1726257139763,3.6173,138.17,138.13,3.618]
[1726257140167,3.6173,138.17,138.12,15.65]
[1726257140367,3.6173,138.17,138.14,3.6177]
[1726257140570,3.6174,138.16,138.12,19.24063]
[1726257140772,15.65,138.19,138.12,19.24063]
[1726257141173,3.6173,138.17,138.12,19.24063]
[1726257141570,15.65,138.19,138.12,22.85903]
[1726257141874,3.618,138.14,138.11,3.59063]
[1726257142379,3.6182,138.13,138.11,3.59063]
[1726257142773,15.65,138.17,138.11,7.20923]
[1726257142981,3.6178,138.15,138.11,7.20923]
[1726257143274,3.6178,138.15,138.11,3.59063]
[1726257143870,3.6178,138.15,138.12,3.6182]
[1726257144178,3.6178,138.15,138.11,3.59063]
[1726257144576,3.6178,138.15,138.11,7.20903]
[1726257144776,3.6179,138.14,138.1,15.65]
[1726257144979,3.6179,138.14,138.1,19.24063]
[1726257145580,3.6177,138.15,138.1,19.24063]
[1726257145767,15.65,138.17,138.1,22.85933]
[1726257145973,15.65,138.17,138.1,3.59063]
[1726257146180,3.6186,138.12,138.08,3.59063]
[1726257146376,15.65,138.15,138.08,7.20993]
[1726257146580,2.7363,138.14,138.08,3.59063]
[1726257146785,18.3863,138.14,138.07,3.61467]
[1726257147079,18.3863,138.14,138.06,3.59115]
[1726257147080,3.6193,138.09,138.06,3.59115]
[1726257147281,15.65,138.12,138.05,3.59115]
[1726257147476,15.65,138.12,138.04,3.6203]
[1726257147788,3.6196,138.08,138.04,3.6203]
[1726257148173,3.6196,138.08,138.05,3.59115]
[1726257148479,3.6196,138.08,138.04,7.21145]
[1726257148875,15.65,138.1,138.04,3.59115]
[1726257150190,15.65,138.1,138.03,7.21165]
[1726257150682,15.65,138.1,138.03,3.59115]
[1726257150872,1.3752,138.13,138.02,3.59115]
[1726257150873,15.65,138.08,138.02,3.59115]
[1726257151181,15.65,138.08,138.0,19.28704731]
[1726257151182,1.4278,138.07,138.0,19.28704731]
[1726257151486,3.6201,138.06,138.01,3.6211]
[1726257151691,2.7662,138.07,138.01,3.59115]
[1726257152888,2.7662,138.07,138.01,7.21225]